bitfinex/quotes_ETHUSD_20240707
["timestamp","ask_amount","ask_price","bid_price","bid_amount"]
[1720351628400,0.40046943,3016.3,3016.0,0.2]
[1720351628614,1.45909994,3016.2,3016.0,0.2]
[1720351628891,0.31056623,3016.1,3016.0,0.2]
[1720351629283,0.31056623,3016.2,3016.0,0.2]
[1720351629591,0.31056623,3016.1,3016.0,0.2]
[1720351629792,0.31056623,3016.2,3016.0,0.2]
[1720351631475,1.14843434,3016.1,3016.0,0.2]
[1720351631675,0.40046943,3016.3,3016.0,0.2]
[1720351631878,1.14845344,3016.1,3016.0,0.2]
[1720351632067,1.4589465,3016.1,3015.8,2.32106]
[1720351632269,0.31049306,3016.0,3015.8,4.64211]
[1720351632493,0.40046943,3016.3,3015.8,2.32105]
[1720351632675,1.45892679,3016.2,3015.8,2.32105]
[1720351632877,1.45892679,3016.1,3015.8,2.32105]
[1720351633082,0.31047566,3016.0,3015.8,4.64211]
[1720351633279,0.40046943,3016.3,3015.8,2.32105]
[1720351633478,1.45892779,3016.2,3015.8,2.32105]
[1720351633678,1.45892779,3016.1,3015.8,2.32105]
[1720351633974,0.31048557,3016.0,3015.8,4.64209]
[1720351634173,0.40046943,3016.3,3015.8,4.64209]
[1720351634409,1.45895072,3016.2,3015.8,4.64209]
[1720351634586,1.45895072,3016.1,3015.8,4.64209]
[1720351634788,0.31049883,3016.0,3015.8,4.64209]
[1720351634986,0.40046943,3016.3,3015.8,4.64209]
[1720351635304,1.45893255,3016.2,3015.8,4.64209]
[1720351635510,1.45893255,3016.1,3015.8,4.6421]
[1720351635693,0.31048063,3016.0,3015.8,4.6421]
[1720351635897,0.40046943,3016.3,3015.7,2.291]
[1720351636096,1.45893277,3016.2,3015.7,2.291]
[1720351636407,0.40046943,3016.3,3015.7,2.291]
[1720351636408,1.64487299,3016.1,3015.7,2.291]
[1720351636574,0.31048055,3016.0,3015.7,2.291]
[1720351636969,0.40046943,3016.3,3015.7,2.291]
[1720351637169,1.45899788,3016.2,3015.7,2.291]
[1720351637402,1.45899788,3016.1,3015.7,4.61218]
[1720351637708,11.10403639,3016.5,3016.1,2.32081]
[1720351637909,1.45883319,3016.4,3016.1,4.64162]
[1720351638074,1.45883319,3016.3,3016.2,2.3208]
[1720351638277,10.75699633,3016.5,3016.2,2.3208]
[1720351638474,0.04879081,3016.3,3016.2,2.3208]
[1720351638699,1.45874831,3016.3,3016.2,2.3208]
[1720351638899,1.50753912,3016.3,3016.2,2.3208]
[1720351641510,1.50753912,3016.3,3016.1,4.84164]
[1720351641710,0.31034192,3016.2,3016.1,2.52081]
[1720351642079,0.35908977,3016.2,3016.1,2.52081]
[1720351643114,0.35908324,3016.2,3016.1,2.52081]
[1720351644215,0.35908324,3016.2,3016.1,4.84168]
[1720351644380,0.35908324,3016.2,3016.1,7.21288]
[1720351644584,0.04876185,3016.2,3016.1,7.41288]
[1720351644779,7.75699633,3016.5,3016.1,5.09201]
[1720351644980,0.04725649,3016.4,3016.3,2.32068]
[1720351645211,0.35756916,3016.4,3016.3,2.32068]
[1720351645723,0.35756916,3016.4,3016.3,7.0126]
[1720351645901,0.04725649,3016.4,3016.3,7.0126]
[1720351648612,7.41,3016.9,3016.7,2.32038]
[1720351648837,0.35764162,3016.8,3016.7,2.32038]
[1720351649039,0.04733562,3016.8,3016.7,7.07828437]
[1720351649347,0.34695539,3017.2,3017.1,2.3201]
[1720351649543,0.6571836,3017.2,3017.1,2.3201]
[1720351649817,0.31022821,3017.2,3017.1,4.6402]
[1720351649986,7.41,3017.4,3017.3,2.31995]
[1720351650187,7.7201652,3017.4,3017.3,2.31995]
[1720351650419,7.72016858,3017.4,3017.3,2.31995]
[1720351650721,7.41,3017.4,3017.3,4.6399]
[1720351651294,7.41,3017.4,3017.3,2.31995]
[1720351651708,8.151,3017.4,3017.3,2.31995]
[1720351653489,8.1980564,3017.4,3017.3,2.31995]
[1720351654341,0.7880564,3017.4,3017.3,2.31995]
[1720351654542,0.0470564,3017.4,3017.3,2.31995]
[1720351655014,0.04706401,3017.4,3017.3,2.31995]
[1720351655216,0.3469309,3017.6,3017.3,2.31995]
[1720351655401,0.04709295,3017.5,3017.0,2.32017]
[1720351656203,0.33940239,3017.4,3017.0,2.32017]
[1720351656404,0.04703506,3017.3,3017.0,2.32017]
[1720351658428,0.04703506,3017.3,3016.9,4.78962]
[1720351658723,0.04703506,3017.3,3017.1,2.32008]
[1720351658901,0.04703506,3017.3,3017.2,2.32003]
[1720351659227,0.0470883,3017.3,3017.1,2.3201]
[1720351659425,3.3469309,3017.6,3017.1,2.3201]
[1720351659623,0.33469309,3017.5,3017.1,2.3201]
[1720351659918,0.38183928,3017.5,3017.1,2.3201]
[1720351662297,0.04714619,3017.5,3017.3,2.31994]
[1720351665209,0.04714619,3017.5,3017.4,2.4826]
[1720351665410,0.34689845,3017.8,3017.4,2.4826]
[1720351665611,0.04715227,3017.7,3017.4,2.4826]
[1720351665810,0.34689845,3017.8,3017.4,2.4826]
[1720351666016,0.04715227,3017.7,3017.5,2.31974]
[1720351666199,0.34689845,3017.8,3017.6,2.31971]
[1720351666618,0.04736616,3017.7,3017.3,2.31991]
[1720351666827,0.34689845,3017.8,3017.5,2.31978]
[1720351667027,0.04735096,3017.7,3017.5,2.31978]
[1720351667232,0.6,3017.8,3017.3,4.6398]
[1720351667404,0.04735096,3017.7,3017.3,2.31989]
[1720351667605,0.6,3017.8,3017.3,2.31989]
[1720351667945,0.04735096,3017.7,3017.3,2.31989]
[1720351668320,0.6,3017.8,3017.3,2.31989]
[1720351668554,0.04732202,3017.6,3017.3,2.31989]
[1720351668724,0.04735096,3017.7,3017.1,4.80266]
[1720351668919,0.6,3017.8,3017.3,2.31994]
[1720351668920,0.04729308,3017.5,3017.3,2.31994]
[1720351669253,0.04754955,3017.4,3017.3,2.31994]
[1720351669631,0.6,3017.8,3017.3,2.31994]
[1720351669833,0.67199511,3017.7,3017.3,2.31994]
[1720351671060,0.67199511,3017.7,3016.9,4.80278]
[1720351671061,1.14795179,3017.6,3016.9,4.80278]
[1720351671279,0.67199511,3017.7,3016.9,4.80278]
[1720351671280,3.0,3017.5,3016.9,4.80278]
[1720351671535,2.6129,3017.4,3016.5,4.80312]
[1720351671741,1.14805855,3017.3,3016.6,3.0]
[1720351671901,1.19408057,3017.3,3016.6,3.0]
[1720351672232,3.0,3017.1,3016.4,2.32057]
[1720351672404,1.60898225,3017.0,3016.4,2.32057]
[1720351672600,1.14813962,3016.9,3016.4,2.32057]
[1720351672814,0.04594343,3016.8,3016.4,2.32057]
[1720351673215,0.41481396,3017.0,3016.4,2.32057]
[1720351673417,3.68104432,3016.9,3016.1,2.92084]
[1720351673618,2.87428593,3016.9,3016.2,5.32079]
[1720351674035,1.14826417,3016.8,3016.2,5.32079]
[1720351674343,0.04428281,3016.7,3016.2,5.32079]
[1720351674810,0.04425929,3016.6,3016.2,5.32079]
[1720351675214,0.04423035,3016.5,3016.2,5.32079]
[1720351675419,2.8299814,3016.9,3016.2,5.32079]
[1720351675607,1.51707364,3016.8,3016.2,5.32079]
[1720351675808,0.36879673,3016.8,3016.2,5.32079]
[1720351676440,0.04431719,3016.8,3016.4,2.32064]
[1720351676631,0.04431719,3016.8,3016.5,2.32056]
[1720351677127,0.04249905,3016.7,3016.6,2.32044]
[1720351677531,0.34697166,3016.9,3016.6,2.32044]
[1720351677726,0.04256025,3016.7,3016.6,2.32044]
[1720351678043,0.04257524,3016.7,3016.6,2.32044]
[1720351678243,0.34697166,3016.9,3016.6,2.32044]
[1720351678408,0.04260419,3016.8,3016.6,2.32042]
[1720351679042,0.04260419,3016.8,3016.7,2.3204]
[1720351679543,0.04260419,3016.8,3016.5,2.32052]
[1720351680545,0.04260419,3016.8,3016.6,2.32049]
[1720351680744,0.04260419,3016.8,3016.6,4.64093]
[1720351681338,0.04260419,3016.8,3016.6,2.32044]
[1720351684046,0.04260419,3016.8,3016.4,4.8041]
[1720351684242,0.04260419,3016.8,3016.4,7.12469]
[1720351684422,0.04260419,3016.8,3016.4,4.80409]
[1720351684619,0.04260419,3016.8,3016.6,2.32045]
[1720351684819,0.04260419,3016.8,3016.6,4.64089]
[1720351685034,0.04260419,3016.8,3016.6,2.32044]
[1720351685818,0.04260419,3016.8,3016.6,4.64088]
[1720351686545,0.04260419,3016.8,3016.7,7.19061375]
[1720351687119,7.41,3017.2,3016.9,2.3202]
[1720351687324,3.0,3017.5,3016.9,2.3202]
[1720351687521,1.45859839,3017.4,3016.9,4.6404]
[1720351687715,7.41,3017.6,3017.0,0.06628885]
[1720351688030,4.45861273,3017.5,3017.2,2.32002]
[1720351688229,0.31060586,3017.4,3017.2,2.32002]
[1720351688453,4.22155262,3017.5,3017.2,2.32002]
[1720351688751,0.31060131,3017.4,3017.2,2.32002]
[1720351689442,7.75691346,3017.6,3017.2,4.80352]
[1720351689659,0.31060227,3017.5,3017.2,4.80352]
[1720351690359,0.31061413,3017.4,3017.2,4.80352]
[1720351690555,7.75691346,3017.6,3017.2,4.80352]
[1720351690763,1.45859265,3017.5,3017.2,4.80352]
[1720351691059,0.31061492,3017.4,3017.2,4.80352]
[1720351691259,8.53260481,3017.6,3017.2,4.80352]
[1720351691431,1.45860674,3017.5,3017.2,4.80352]
[1720351691632,0.31063785,3017.4,3017.3,2.31995]
[1720351692028,0.31063785,3017.5,3017.3,2.31995]
[1720351692256,0.31063785,3017.4,3017.3,2.31995]
[1720351692656,0.31063785,3017.5,3017.3,2.31995]
[1720351693744,0.34691346,3017.6,3017.3,2.31995]
[1720351693967,0.31068469,3017.5,3017.3,2.31995]
[1720351695170,0.31068469,3017.5,3017.4,0.2]
[1720351696236,1.45866885,3017.5,3017.4,0.2]
[1720351696436,1.63922708,3017.5,3017.4,0.2]
[1720351696767,4.63922708,3017.5,3017.4,0.2]
[1720351696953,3.18055823,3017.5,3017.4,0.2]
[1720351697154,4.63933887,3017.5,3017.4,0.2]
[1720351698672,4.68071606,3017.5,3017.4,0.2]
[1720351700367,4.68076271,3017.5,3017.4,0.2]
[1720351700671,3.22193542,3017.5,3017.4,0.2]
[1720351700976,4.68075332,3017.5,3017.4,0.2]
[1720351701666,4.68075351,3017.5,3017.4,0.2]
[1720351703647,4.68070347,3017.5,3017.4,0.2]
[1720351707050,4.68064798,3017.5,3017.4,0.2]
[1720351709148,5.0275786,3017.5,3017.4,0.2]
[1720351710362,3.87954412,3017.5,3017.4,0.2]
[1720351710564,5.02759706,3017.5,3017.4,0.2]
[1720351713553,3.56886604,3017.5,3017.4,0.2]
[1720351713780,5.02769855,3017.5,3017.4,0.2]
[1720351717082,5.02783776,3017.5,3017.4,0.2]
[1720351717289,4.84727953,3017.5,3017.4,0.2]
[1720351717450,3.69926007,3017.5,3017.4,0.2]
[1720351717655,4.84726965,3017.5,3017.4,0.2]
[1720351718489,4.84731085,3017.5,3017.4,0.2]
[1720351720459,4.84734953,3017.5,3017.4,0.2]
[1720351720990,4.50041891,3017.5,3017.4,4.81527]
[1720351723286,1.50041891,3017.5,3017.4,4.81527]
[1720351723787,1.50028207,3017.5,3017.4,4.81527]
[1720351724984,0.04137719,3017.5,3017.4,4.81527]
[1720351725386,3.34687951,3017.9,3017.5,2.31976]
[1720351725580,1.45871758,3017.8,3017.5,2.31976]
[1720351725782,1.45871758,3017.7,3017.5,2.31976]
[1720351726092,1.45872298,3017.6,3017.5,2.31976]
[1720351726756,0.31087621,3017.6,3017.5,2.31976]
[1720351727086,0.31089078,3017.8,3017.5,2.31976]
[1720351727289,1.45873449,3017.7,3017.5,2.31976]
[1720351727591,3.34687951,3017.9,3017.7,2.31964]
[1720351727766,1.45868621,3017.8,3017.7,2.31964]
[1720351727966,1.45868621,3017.8,3017.7,4.78154]
[1720351728697,0.34781326,3017.8,3017.7,4.78154]
[1720351730359,0.34776916,3017.8,3017.7,4.78154]
[1720351733700,0.03693544,3017.8,3017.7,4.78154]
[1720351733997,0.34779151,3017.8,3017.7,4.78154]
[1720351734196,0.34779911,3017.8,3017.7,4.78154]
[1720351735204,0.34779886,3017.8,3017.7,4.78154]
[1720351737110,0.03693544,3017.8,3017.7,4.78154]
[1720351737294,0.34783923,3017.8,3017.7,4.78154]
[1720351737802,0.34783923,3017.8,3017.7,4.98154]
[1720351738799,0.03693544,3017.8,3017.7,4.98154]
[1720351738975,0.34786706,3017.8,3017.7,4.98154]
[1720351739472,1.49568626,3017.8,3017.7,4.98154]
[1720351740509,0.34788975,3017.8,3017.7,4.98154]
[1720351740806,1.49571023,3017.8,3017.7,4.98154]
[1720351740971,1.49571023,3017.8,3017.7,2.6619]
[1720351741177,2.68628125,3017.8,3017.7,0.2]
[1720351742071,2.68628125,3017.8,3017.7,0.4]
[1720351742903,1.53842334,3017.8,3017.7,0.4]
[1720351743097,2.68624519,3017.8,3017.7,0.4]
[1720351746207,1.22750646,3017.8,3017.7,0.4]
[1720351746408,2.68617124,3017.8,3017.7,0.4]
[1720351746586,1.22750646,3017.8,3017.7,0.4]
[1720351746790,2.68617611,3017.8,3017.7,0.4]
[1720351747684,3.03327375,3017.8,3017.7,0.4]
[1720351749503,1.57440719,3017.8,3017.7,0.4]
[1720351749700,3.03334009,3017.8,3017.7,0.4]
[1720351751412,4.21987587,3017.8,3017.7,0.4]
[1720351751610,11.13311587,3017.8,3017.7,0.4]
[1720351752920,11.13308617,3017.8,3017.7,0.4]
[1720351756124,8.48764719,3017.8,3017.7,0.4]
[1720351756315,8.81355311,3017.8,3017.7,0.4]
[1720351758897,8.81381501,3017.8,3017.7,0.4]
[1720351759526,7.31608284,3017.8,3017.7,0.4]
[1720351759719,8.81350502,3017.8,3017.7,0.4]
[1720351759916,7.66554796,3017.8,3017.7,0.4]
[1720351760225,8.81355365,3017.8,3017.7,0.4]
[1720351760825,7.31608288,3017.8,3017.7,0.4]
[1720351761029,8.81356688,3017.8,3017.7,0.4]
[1720351762804,6.16807719,3017.8,3017.7,0.4]
[1720351763013,8.81365838,3017.8,3017.7,0.4]
[1720351766105,6.16807719,3017.8,3017.7,0.4]
[1720351766305,8.81363304,3017.8,3017.7,0.4]
[1720351768242,8.87137307,3017.8,3017.7,0.4]
[1720351769535,6.22581722,3017.8,3017.7,0.4]
[1720351769841,8.87133724,3017.8,3017.7,0.4]
[1720351771303,8.87133724,3017.8,3016.8,2.32032]
[1720351771509,3.0,3016.8,3016.5,2.3791]
[1720351771835,1.49314671,3016.7,3016.5,2.3791]
[1720351772007,0.31097719,3016.6,3016.5,2.3791]
[1720351772202,0.03402155,3016.6,3016.5,2.3791]
[1720351772421,3.34699323,3016.8,3016.5,2.3791]
[1720351772620,0.03396862,3016.6,3016.5,2.3791]
[1720351772818,3.34699323,3016.8,3016.5,2.3791]
[1720351773015,0.03396862,3016.6,3016.5,2.3791]
[1720351773240,3.34699323,3016.8,3016.5,2.3791]
[1720351773444,0.03391064,3016.6,3016.5,2.3791]
[1720351773752,3.34699323,3016.8,3016.5,2.3791]
[1720351773922,0.03390812,3016.6,3016.5,2.3791]
[1720351774521,1.18225292,3016.6,3016.5,2.3791]
[1720351774824,1.97735658,3016.6,3016.5,2.3791]
[1720351776131,0.51793992,3016.6,3016.5,2.3791]
[1720351776442,1.9774611,3016.6,3015.8,2.32106]
[1720351776643,3.0,3016.4,3016.1,2.2744]
[1720351777143,0.03363644,3016.3,3016.1,2.2744]
[1720351780751,0.33700008,3016.3,3015.7,2.3069]
[1720351780947,0.03363644,3016.3,3015.7,2.3069]
[1720351782528,0.34705944,3016.2,3015.7,2.3069]
[1720351782928,0.03233789,3016.1,3015.7,2.3069]
[1720351786743,0.03233789,3016.1,3015.7,4.62806]
[1720351796071,0.03233789,3016.1,3015.7,6.94917]
[1720351796275,0.03233789,3016.1,3015.7,7.644087]
[1720351796570,0.03233789,3016.1,3016.0,2.3126]
[1720351796937,3.34677298,3016.4,3016.0,2.3126]
[1720351797140,0.03220182,3016.1,3016.0,2.3126]
[1720351797336,3.34677298,3016.4,3016.0,2.3126]
[1720351797856,0.03226848,3016.3,3016.0,2.3126]
[1720351799145,0.03226848,3016.3,3016.0,4.6335]
[1720351801368,1.14843372,3016.2,3016.0,4.6335]
[1720351801589,0.03226848,3016.3,3016.1,2.32087]
[1720351801873,0.03226848,3016.3,3016.2,6.9542]
[1720351805950,0.03226848,3016.3,3016.2,9.275]
[1720351806680,2.63,3017.3,3016.3,2.3126]
[1720351806881,2.63,3017.3,3017.2,4.63263]
[1720351807526,2.63,3017.3,3017.2,6.95266]
[1720351807645,2.63,3017.3,3016.9,2.3126]
[1720351807846,2.63,3017.3,3016.4,4.63321]
[1720351807847,5.4401,3017.1,3016.4,4.63321]
[1720351808046,1.14809529,3017.0,3016.4,4.63323]
[1720351808289,3.0,3017.1,3016.7,2.32037]
[1720351808458,3.0,3017.1,3016.4,2.3126]
[1720351808777,2.97680624,3017.3,3016.9,4.63285]
[1720351808987,1.14808503,3017.2,3016.9,4.63285]
[1720351809148,2.97680624,3017.3,3016.9,4.63285]
[1720351809352,2.29615837,3017.2,3016.9,4.63285]
[1720351809549,1.14808078,3017.2,3016.9,4.63285]
[1720351809768,1.14808078,3017.2,3016.7,2.32041]
[1720351809769,1.14808078,3017.2,3016.7,2.32034]
[1720351809966,3.0,3017.0,3016.3,4.63327]
[1720351810252,0.41481537,3016.9,3016.4,2.32064]
[1720351810473,3.0,3017.0,3016.4,2.32064]
[1720351813089,3.0,3017.0,3016.4,4.64122]
[1720351813388,0.31124672,3016.9,3016.4,4.64122]
[1720351813689,0.31124672,3016.9,3016.5,2.32056]
[1720351813854,3.0,3017.0,3016.5,2.32056]
[1720351816994,0.31129842,3016.9,3016.3,4.63325]
[1720351817176,0.31130163,3016.8,3016.3,4.63325]
[1720351817383,5.70980808,3017.0,3016.3,2.3126]
[1720351817588,0.02934383,3016.7,3016.3,2.3126]
[1720351817793,8.03000808,3017.0,3016.3,2.3126]
[1720351817994,0.02934892,3016.6,3016.3,2.3126]
[1720351818193,1.54400081,3016.9,3016.3,2.3126]
[1720351818401,0.02931996,3016.5,3016.0,4.7597]
[1720351818612,5.271,3016.6,3016.0,4.7597]
[1720351818815,0.02913377,3016.4,3016.0,2.4388]
[1720351819011,0.53001338,3016.4,3015.9,4.75982]
[1720351819206,0.02926438,3016.3,3015.9,4.75982]
[1720351823691,0.02926438,3016.3,3016.0,2.32094]
[1720351823877,3.0,3016.6,3016.0,2.32094]
[1720351824078,0.34065946,3016.5,3016.0,2.32094]
[1720351824394,0.02919591,3016.5,3016.0,2.32094]
[1720351825283,0.3321155,3016.5,3016.0,2.32094]
[1720351825511,1.4598966,3016.4,3016.0,2.32094]
[1720351825711,0.34076359,3016.3,3015.9,2.32101]
[1720351825886,0.02922931,3016.3,3015.9,2.32101]
[1720351826086,2.57391959,3016.5,3015.9,2.32101]
[1720351826418,2.04664096,3016.4,3015.9,2.32101]
[1720351826612,0.31153617,3016.3,3015.9,2.32101]
[1720351826986,0.02921307,3016.2,3015.9,2.32101]
[1720351827419,2.57391959,3016.5,3015.9,2.32101]
[1720351827583,0.02918411,3016.1,3015.9,2.32101]
[1720351827785,2.57391959,3016.5,3015.9,2.32101]
[1720351827984,0.02915515,3016.0,3015.9,2.32101]
[1720351828285,2.57391959,3016.5,3015.9,2.32101]
[1720351828516,1.48908027,3016.4,3015.9,2.32101]
[1720351828839,1.45996085,3016.3,3015.9,2.32103]
[1720351829036,0.02912706,3016.4,3015.9,2.32103]
[1720351829237,0.02906914,3016.2,3015.9,2.32103]
[1720351829723,2.92051546,3016.5,3015.8,4.64211]
[1720351829891,2.08117418,3016.4,3015.8,4.64211]
[1720351830109,1.45999557,3016.3,3015.8,2.32105]
[1720351830415,0.02906914,3016.2,3015.8,2.32105]
[1720351830797,0.59205155,3016.4,3015.8,2.32105]
[1720351831115,1.48910182,3016.3,3015.8,2.32105]
[1720351831316,0.0290981,3016.3,3016.2,0.2]
[1720351831519,1.84327951,3016.3,3016.2,0.2]
[1720351832426,0.6947624,3016.3,3016.2,0.2]
[1720351832716,1.84324094,3016.3,3016.2,0.2]
[1720351832919,1.84321426,3016.3,3016.2,0.2]
[1720351833283,0.6947624,3016.3,3016.2,0.2]
[1720351833922,1.8432224,3016.3,3016.2,0.2]
[1720351834216,0.31149779,3016.3,3016.2,0.2]
[1720351834417,0.31149779,3016.3,3016.2,2.5169]
[1720351834616,0.34659587,3016.5,3016.2,2.5169]
[1720351835290,0.31161306,3016.4,3016.2,2.7169]
[1720351835627,0.34659587,3016.5,3016.2,2.7169]
[1720351836722,0.31171932,3016.4,3016.2,2.7169]
[1720351837017,0.34659587,3016.5,3016.2,2.7169]
[1720351837389,0.31171291,3016.4,3016.2,2.7169]
[1720351838387,0.31171291,3016.4,3016.2,0.4]
[1720351838588,0.67754379,3016.4,3016.2,0.4]
[1720351838792,1.46015697,3016.3,3016.2,0.4]
[1720351838987,1.46027546,3016.3,3016.2,0.4]
[1720351842102,6.21699546,3016.3,3016.2,0.4]
[1720351842720,6.2169969,3016.3,3016.2,0.4]
[1720351843030,6.90993927,3016.3,3016.2,0.4]
[1720351843826,6.90991934,3016.3,3016.2,0.4]
[1720351845433,5.44966237,3016.3,3016.2,0.4]
[1720351845602,6.90996734,3016.3,3016.2,0.4]
[1720351846226,2.15324734,3016.3,3016.2,0.4]
[1720351846831,1.46030497,3016.3,3016.2,2.6749]
[1720351847968,1.14853679,3016.3,3016.2,2.6749]
[1720351848167,7.41,3016.8,3016.4,2.32058]
[1720351848298,1.45997454,3016.7,3016.4,2.38687649]
[1720351848499,7.41,3016.8,3016.4,2.89305414]
[1720351848695,1.14823141,3016.6,3016.5,2.32056]
[1720351848976,7.41,3016.8,3016.5,2.32056]
[1720351849132,1.14723207,3016.7,3016.5,2.32056]
[1720351849331,7.41,3016.8,3016.6,2.32049]
[1720351850753,3.65013762,3017.1,3016.7,2.2749]
[1720351850968,3.65013762,3017.1,3016.9,2.32025]
[1720351851138,3.65013762,3017.1,3016.9,2.32026]
[1720351851463,10.04,3017.3,3017.1,2.32008]
[1720351854972,10.04,3017.3,3017.0,2.506926]
[1720351855133,10.04,3017.3,3017.0,2.2749]
[1720351855344,10.04,3017.3,3016.6,2.3364]
[1720351855534,0.31155813,3017.2,3016.6,2.3364]
[1720351855846,10.04,3017.3,3016.9,2.32021]
[1720351856573,2.63,3017.3,3016.9,2.32021]
[1720351857700,2.63,3017.3,3016.7,2.32037]
[1720351858137,0.31160086,3017.2,3016.7,2.32037]
[1720351858337,2.63,3017.3,3016.7,2.32037]
[1720351858567,0.31162544,3017.2,3016.7,2.32037]
[1720351858766,3.0,3017.1,3016.3,4.5988]
[1720351858953,0.3116596,3017.0,3016.3,4.5988]
[1720351859737,3.0,3016.7,3016.2,0.4]
[1720351859938,3.532032,3016.7,3016.2,0.4]
[1720351861041,5.852452,3016.7,3016.2,0.4]
[1720351861774,3.532032,3016.7,3016.2,0.4]
[1720351861970,0.31188941,3016.6,3016.2,0.4]
[1720351862468,3.0,3016.7,3016.2,0.4]
[1720351862634,0.31180713,3016.6,3016.2,0.4]
[1720351862842,3.0,3016.7,3016.2,4.99883]
[1720351863037,3.0,3016.7,3016.3,2.32071]
[1720351863451,3.0,3016.7,3016.3,2.32067]
[1720351863754,3.0,3016.7,3016.5,2.32051]
[1720351864582,3.0,3016.7,3016.5,2.3205]
[1720351864879,7.41,3017.0,3016.5,2.3205]
[1720351865456,3.0,3017.2,3016.5,2.3205]
[1720351865653,0.31165083,3017.1,3016.5,2.3205]
[1720351865977,0.31165083,3017.1,3016.6,2.32049]
[1720351868077,0.31165083,3017.1,3016.7,2.2781]
[1720351868856,3.0,3017.2,3016.7,2.2781]
[1720351869075,0.31165195,3017.1,3016.7,2.2781]
[1720351869951,3.0,3017.2,3016.8,2.32033]
[1720351870151,3.0,3017.2,3016.9,0.459843]
[1720351870702,3.0,3017.2,3016.8,2.32033]
[1720351871803,3.0,3017.2,3016.1,2.2781]
[1720351871954,1.45986258,3017.1,3016.2,2.2781]
[1720351872160,1.14820564,3017.1,3016.8,2.32033]
[1720351872360,3.0,3017.2,3016.8,2.32033]
[1720351874963,3.0,3017.2,3016.6,2.32049]
[1720351874964,3.0,3017.2,3016.6,4.64091]
[1720351875259,1.14813214,3017.1,3016.6,4.64091]
[1720351875509,3.0,3017.2,3016.6,4.64091]
[1720351875707,1.14816465,3017.1,3016.6,4.64091]
[1720351875904,3.0,3017.2,3016.6,4.64091]
[1720351876203,1.1481543,3017.1,3016.7,2.3204]
[1720351876371,1.1481543,3017.0,3016.7,2.3204]
[1720351876577,3.0,3017.2,3016.7,2.784482]
[1720351876775,1.14812321,3017.1,3016.8,2.32027]
[1720351877094,3.0,3017.2,3016.9,2.4262]
[1720351877288,1.14810092,3017.1,3016.9,2.4262]
[1720351877495,3.0,3017.2,3016.9,2.4262]
[1720351877804,1.14809496,3017.1,3016.9,5.27752362]
[1720351878023,2.97587204,3017.3,3017.0,2.52018]
[1720351878166,7.41,3017.6,3017.5,2.3198]
[1720351878368,1.14797459,3017.6,3017.5,2.3198]
[1720351878592,3.31,3017.8,3017.6,2.3197]
[1720351878804,6.31,3017.8,3017.6,2.3197]
[1720351879115,1.14781935,3017.7,3017.6,2.3197]
[1720351879279,3.31,3017.8,3017.7,2.31964]
[1720351879490,4.45781936,3017.8,3017.7,2.31964]
[1720351879868,3.31,3017.8,3017.7,2.31964]
[1720351880068,4.45783064,3017.8,3017.7,7.07508]
[1720351880266,7.41,3018.1,3017.8,2.31951]
[1720351880471,1.14778055,3018.0,3017.8,2.31951]
[1720351880709,0.34624031,3018.0,3017.8,2.31951]
[1720351881321,0.34624031,3018.0,3017.7,4.75544]
[1720351881622,1.14783425,3017.9,3017.5,2.31976]
[1720351881774,1.00044116,3018.0,3017.5,4.6395]
[1720351882112,1.14783233,3017.9,3017.5,4.6395]
[1720351882320,1.00044116,3018.0,3017.1,2.4358]
[1720351882535,1.14787783,3017.9,3017.1,2.4358]
[1720351882677,1.14787783,3017.8,3017.1,2.899882]
[1720351882883,1.14787783,3017.9,3017.1,2.899882]
[1720351883818,1.14787783,3017.9,3017.4,2.31982]
[1720351884192,1.00044116,3018.0,3017.5,2.31973]
[1720351884633,0.34624031,3018.0,3017.6,2.31972]
[1720351884783,0.34624031,3018.0,3017.7,4.75544]
[1720351885185,0.34624031,3018.0,3017.9,2.31949]
[1720351886550,19.82,3018.4,3017.9,2.31949]
[1720351886831,6.31,3018.6,3017.9,2.31949]
[1720351887129,2.31963255,3018.4,3017.9,2.31949]
[1720351887443,5.97643112,3018.5,3017.9,2.31949]
[1720351887844,5.97643112,3018.5,3018.0,2.3194]
[1720351889113,5.97643112,3018.5,3017.7,2.4358]
[1720351889318,2.97643112,3018.5,3017.7,2.4358]
[1720351889528,2.63,3018.5,3018.4,2.3191]
[1720351890311,2.63,3018.5,3018.3,2.31918]
[1720351891107,2.63,3018.5,3018.3,4.6383]
[1720351891412,2.63,3018.5,3018.3,2.31912]
[1720351891720,2.63,3018.5,3018.4,2.3191]
[1720351896200,2.63,3018.5,3018.4,6.8982]
[1720351896938,2.63,3018.5,3018.4,4.5791]
[1720351897431,7.41,3019.0,3018.9,6.89744]
[1720351897605,7.41,3019.5,3019.2,2.31841]
[1720351897809,7.41,3019.5,3019.3,2.31841]
[1720351900604,7.41,3019.5,3019.3,4.63678]
[1720351900805,7.41,3019.5,3019.3,4.63674]
[1720351901021,7.41,3019.5,3019.3,2.31837]
[1720351901235,3.0,3019.7,3019.3,2.31837]
[1720351902518,5.77105686,3019.7,3019.0,2.31862]
[1720351902716,7.07682912,3019.7,3019.0,2.31862]
[1720351902905,6.11789043,3019.7,3019.0,2.31862]
[1720351903105,6.11789043,3019.7,3019.1,2.31854]
[1720351904423,3.69339043,3019.7,3019.1,2.31854]
[1720351904726,3.34655686,3019.7,3019.3,4.60904]
[1720351905037,3.34655686,3019.7,3019.4,2.31831]
[1720351905226,3.0,3019.7,3019.4,2.31831]
[1720351907037,0.34682023,3019.8,3019.5,2.38449234]
[1720351907242,0.34682023,3019.8,3019.5,2.31826]
[1720351907417,2.63,3019.9,3019.5,2.31826]
[1720351907818,2.63,3019.9,3019.6,2.31816]
[1720351908043,2.63,3019.9,3019.6,2.38435765]
[1720351908349,2.63,3019.9,3019.8,4.60873]